[Event "*** Titled Tuesday Blitz"]
[Site "Chess.com"]
[Date "2020.04.21"]
[Round "2"]
[White "tan275"]
[Black "keepitcool9499"]
[Result "1/2-1/2"]
[WhiteElo "2152"]
[BlackElo "2409"]
[TimeControl "180+1"]
[EndTime "10:20:08 PDT"]
[Termination "Game drawn by repetition"]

1. d4 {[%clk 0:03:00.9]} 1... Nf6 {[%clk 0:02:59.5]} 2. c4 {[%clk 0:03:01.3]}
2... e6 {[%clk 0:02:59.6]} 3. g3 {[%clk 0:03:01.5]} 3... d5 {[%clk 0:03:00]} 4.
Nf3 {[%clk 0:03:02.1]} 4... Be7 {[%clk 0:02:59]} 5. Bg2 {[%clk 0:03:02.5]} 5...
O-O {[%clk 0:02:59.4]} 6. O-O {[%clk 0:03:03]} 6... Nbd7 {[%clk 0:02:59.2]} 7.
Qc2 {[%clk 0:02:58]} 7... b6 {[%clk 0:02:49.8]} 8. cxd5 {[%clk 0:02:56.5]} 8...
exd5 {[%clk 0:02:50.7]} 9. Nc3 {[%clk 0:02:55.4]} 9... Bb7 {[%clk 0:02:50.2]}
10. Bf4 {[%clk 0:02:54.8]} 10... c5 {[%clk 0:02:50.1]} 11. dxc5 {[%clk
0:02:35.7]} 11... Nxc5 {[%clk 0:02:51]} 12. Rfd1 {[%clk 0:02:33.4]} 12... Rc8
{[%clk 0:02:43.9]} 13. Nd4 {[%clk 0:02:22.4]} 13... Bd6 {[%clk 0:02:33.1]} 14.
Bg5 {[%clk 0:02:17.6]} 14... h6 {[%clk 0:02:31.8]} 15. Bxf6 {[%clk 0:02:02.4]}
15... Qxf6 {[%clk 0:02:32.7]} 16. Qd2 {[%clk 0:01:55.5]} 16... Be5 {[%clk
0:02:26.3]} 17. e3 {[%clk 0:01:42.3]} 17... Ne4 {[%clk 0:02:21.5]} 18. Nxe4
{[%clk 0:01:38.7]} 18... dxe4 {[%clk 0:02:22.4]} 19. Rac1 {[%clk 0:01:16.4]}
19... Rfd8 {[%clk 0:02:15.9]} 20. Rxc8 {[%clk 0:01:10.2]} 20... Rxc8 {[%clk
0:02:16.8]} 21. Nb5 {[%clk 0:00:55.8]} 21... a5 {[%clk 0:01:48.3]} 22. b3 {[%clk
0:00:52.6]} 22... Rc5 {[%clk 0:01:38.8]} 23. a4 {[%clk 0:00:35.9]} 23... Qc6
{[%clk 0:01:31.1]} 24. h4 {[%clk 0:00:23.3]} 24... Rd5 {[%clk 0:01:16.3]} 25.
Qxd5 {[%clk 0:00:15]} 25... Qxd5 {[%clk 0:01:17.2]} 26. Rxd5 {[%clk 0:00:15.4]}
26... Bxd5 {[%clk 0:01:18.1]} 27. Kf1 {[%clk 0:00:13.7]} 27... Bxb3 {[%clk
0:01:17.6]} 28. Bxe4 {[%clk 0:00:13.5]} 28... Bxa4 {[%clk 0:01:17.9]} 29. Bd3
{[%clk 0:00:13.6]} 29... Bb3 {[%clk 0:01:15.5]} 30. Ke2 {[%clk 0:00:13.3]} 30...
a4 {[%clk 0:01:14.4]} 31. Kd2 {[%clk 0:00:11.7]} 31... Bb2 {[%clk 0:01:14.1]}
32. Bc2 {[%clk 0:00:10.7]} 32... Bc4 {[%clk 0:01:11.7]} 33. Bxa4 {[%clk
0:00:08.5]} 33... Kf8 {[%clk 0:01:06.4]} 34. e4 {[%clk 0:00:07.1]} 34... Ke7
{[%clk 0:01:05.9]} 35. Ke3 {[%clk 0:00:06.3]} 35... g5 {[%clk 0:01:00]} 36. Nd4
{[%clk 0:00:06.8]} 36... Bxd4+ {[%clk 0:00:57.5]} 37. Kxd4 {[%clk 0:00:06.4]}
37... b5 {[%clk 0:00:58.4]} 38. Bc2 {[%clk 0:00:05.2]} 38... Ke6 {[%clk
0:00:57.3]} 39. hxg5 {[%clk 0:00:05.1]} 39... hxg5 {[%clk 0:00:56.6]} 40. f4
{[%clk 0:00:05.7]} 40... gxf4 {[%clk 0:00:55.4]} 41. gxf4 {[%clk 0:00:06.6]}
41... Ba2 {[%clk 0:00:46.3]} 42. f5+ {[%clk 0:00:06.9]} 42... Kd6 {[%clk
0:00:45.5]} 43. e5+ {[%clk 0:00:06.6]} 43... Kc6 {[%clk 0:00:45.2]} 44. Be4+
{[%clk 0:00:06.3]} 44... Kb6 {[%clk 0:00:43.3]} 45. Kc3 {[%clk 0:00:05.6]} 45...
Kc5 {[%clk 0:00:41.9]} 46. Bd3 {[%clk 0:00:04.9]} 46... b4+ {[%clk 0:00:40.6]}
47. Kb2 {[%clk 0:00:04.7]} 47... Bd5 {[%clk 0:00:39.1]} 48. e6 {[%clk
0:00:05.6]} 48... f6 {[%clk 0:00:38.3]} 49. Be2 {[%clk 0:00:04.7]} 49... Kd6
{[%clk 0:00:34.4]} 50. Bg4 {[%clk 0:00:05.6]} 50... Ke5 {[%clk 0:00:32.4]} 51.
Bh3 {[%clk 0:00:06.2]} 51... Bc6 {[%clk 0:00:31]} 52. Bg4 {[%clk 0:00:06.1]}
52... Kf4 {[%clk 0:00:26.5]} 53. Bh3 {[%clk 0:00:06.6]} 53... Kg3 {[%clk
0:00:23.1]} 54. Bf1 {[%clk 0:00:06.4]} 54... Ba4 {[%clk 0:00:18.1]} 55. Bd3
{[%clk 0:00:06.1]} 55... Kf3 {[%clk 0:00:17.7]} 56. Bc2 {[%clk 0:00:05.7]} 56...
Be8 {[%clk 0:00:15.6]} 57. Bb3 {[%clk 0:00:06]} 57... Kf4 {[%clk 0:00:14.9]} 58.
Bc2 {[%clk 0:00:06.9]} 58... Ke5 {[%clk 0:00:14.5]} 59. Bb1 {[%clk 0:00:07.8]}
59... Ba4 {[%clk 0:00:13.3]} 60. Bc2 {[%clk 0:00:08.7]} 60... Bc6 {[%clk
0:00:11.8]} 61. Bb1 {[%clk 0:00:08.6]} 61... Kd6 {[%clk 0:00:11.2]} 62. Bc2
{[%clk 0:00:08.8]} 62... Kc5 {[%clk 0:00:11.1]} 63. Bb1 {[%clk 0:00:08.6]} 63...
Bd5 {[%clk 0:00:11]} 64. Bc2 {[%clk 0:00:08.7]} 64... Bc6 {[%clk 0:00:10.9]} 65.
Bb1 {[%clk 0:00:09.1]} 65... Kd4 {[%clk 0:00:11.1]} 66. Bc2 {[%clk 0:00:08.7]}
66... Ke3 {[%clk 0:00:10.9]} 67. Bb1 {[%clk 0:00:09.2]} 67... Kd4 {[%clk
0:00:10.8]} 68. Bc2 {[%clk 0:00:09.7]} 68... Ke5 {[%clk 0:00:11]} 69. Kb3 {[%clk
0:00:08.9]} 69... Kd6 {[%clk 0:00:08.2]} 70. Kxb4 {[%clk 0:00:09]} 70... Ke7
{[%clk 0:00:07.6]} 71. Kc5 {[%clk 0:00:09.2]} 71... Ba8 {[%clk 0:00:07.4]} 72.
Bd3 {[%clk 0:00:09.7]} 72... Bg2 {[%clk 0:00:07.2]} 73. Kd4 {[%clk 0:00:09.6]}
73... Bh3 {[%clk 0:00:07.2]} 74. Ke3 {[%clk 0:00:09.8]} 74... Bg4 {[%clk
0:00:07]} 75. Kf4 {[%clk 0:00:10.1]} 75... Bd1 {[%clk 0:00:07]} 76. Kg3 {[%clk
0:00:10]} 76... Ba4 {[%clk 0:00:07.1]} 77. Kh4 {[%clk 0:00:10.5]} 77... Bc6
{[%clk 0:00:07.2]} 78. Kh5 {[%clk 0:00:10.3]} 78... Bb7 {[%clk 0:00:07.4]} 79.
Kh6 {[%clk 0:00:10.8]} 79... Bc6 {[%clk 0:00:07.5]} 80. Kg7 {[%clk 0:00:11.4]}
80... Ba4 {[%clk 0:00:07.6]} 81. Be4 {[%clk 0:00:11]} 81... Bd1 {[%clk
0:00:07.5]} 82. Bb1 {[%clk 0:00:10.9]} 82... Be2 {[%clk 0:00:07.4]} 83. Be4
{[%clk 0:00:10.9]} 83... Bd1 {[%clk 0:00:05.5]} 84. Bb1 {[%clk 0:00:11.3]} 84...
Bf3 {[%clk 0:00:05.5]} 85. Bd3 {[%clk 0:00:11.7]} 85... Bd1 {[%clk 0:00:04.8]}
86. Bb1 {[%clk 0:00:12.1]} 1/2-1/2

[Event "*** Titled Tuesday Blitz"]
[Site "Chess.com"]
[Date "2020.04.21"]
[Round "2"]
[White "donotreadit"]
[Black "MeetGoku"]
[Result "1-0"]
[WhiteElo "2676"]
[BlackElo "2327"]
[TimeControl "180+1"]
[EndTime "10:20:18 PDT"]
[Termination "donotreadit won on time"]

1. Nf3 {[%clk 0:03:00.9]} 1... Nf6 {[%clk 0:03:00]} 2. d4 {[%clk 0:02:55.7]}
2... g6 {[%clk 0:03:00.2]} 3. Bg5 {[%clk 0:02:56.3]} 3... Bg7 {[%clk 0:03:00.1]}
4. Nbd2 {[%clk 0:02:57]} 4... O-O {[%clk 0:03:00.2]} 5. e4 {[%clk 0:02:57.6]}
5... d5 {[%clk 0:03:00.4]} 6. Bd3 {[%clk 0:02:44]} 6... dxe4 {[%clk 0:02:51.6]}
7. Nxe4 {[%clk 0:02:44.9]} 7... Nxe4 {[%clk 0:02:51.8]} 8. Bxe4 {[%clk
0:02:45.3]} 8... c6 {[%clk 0:02:51.4]} 9. O-O {[%clk 0:02:44.4]} 9... Bg4 {[%clk
0:02:51.3]} 10. c3 {[%clk 0:02:44.5]} 10... Nd7 {[%clk 0:02:50.7]} 11. h3 {[%clk
0:02:43.1]} 11... Bxf3 {[%clk 0:02:42.9]} 12. Bxf3 {[%clk 0:02:44]} 12... Re8
{[%clk 0:02:41]} 13. Re1 {[%clk 0:02:36.7]} 13... Nf6 {[%clk 0:02:22]} 14. Qb3
{[%clk 0:02:26.4]} 14... Qb6 {[%clk 0:02:19.8]} 15. Rad1 {[%clk 0:02:24.9]}
15... e6 {[%clk 0:02:18]} 16. g3 {[%clk 0:02:15.8]} 16... Nd5 {[%clk 0:02:08.5]}
17. Bc1 {[%clk 0:02:15]} 17... Qxb3 {[%clk 0:02:02.3]} 18. axb3 {[%clk
0:02:13.1]} 18... a5 {[%clk 0:02:02.8]} 19. Rd3 {[%clk 0:02:01.9]} 19... a4
{[%clk 0:01:36.8]} 20. b4 {[%clk 0:02:01.4]} 20... Rad8 {[%clk 0:01:31.6]} 21.
Bd1 {[%clk 0:01:57.2]} 21... b5 {[%clk 0:01:29.4]} 22. Bf3 {[%clk 0:01:56.1]}
22... Rd6 {[%clk 0:01:28]} 23. h4 {[%clk 0:01:55.6]} 23... h5 {[%clk 0:01:27.4]}
24. Bg5 {[%clk 0:01:51.7]} 24... Ra8 {[%clk 0:01:22.7]} 25. Bc1 {[%clk
0:01:49.2]} 25... Bf6 {[%clk 0:01:21]} 26. Kg2 {[%clk 0:01:46]} 26... Rad8
{[%clk 0:01:19.9]} 27. Rdd1 {[%clk 0:01:39]} 27... Ra8 {[%clk 0:01:18.2]} 28.
Rd3 {[%clk 0:01:34.7]} 28... Kf8 {[%clk 0:01:17.7]} 29. Re2 {[%clk 0:01:33]}
29... Ke7 {[%clk 0:01:16.7]} 30. Kh3 {[%clk 0:01:25.8]} 30... Kd7 {[%clk
0:01:16.1]} 31. Bg2 {[%clk 0:01:25]} 31... Kc7 {[%clk 0:01:15.7]} 32. Rf3 {[%clk
0:01:22.9]} 32... Rd7 {[%clk 0:01:09.2]} 33. Rd3 {[%clk 0:01:14.7]} 33... Kb7
{[%clk 0:01:08.5]} 34. Rf3 {[%clk 0:01:06.1]} 34... Bg7 {[%clk 0:01:06.7]} 35.
Kh2 {[%clk 0:00:59.8]} 35... Nb6 {[%clk 0:01:04.4]} 36. Rd3 {[%clk 0:00:37.2]}
36... Nd5 {[%clk 0:01:00]} 37. Be4 {[%clk 0:00:35.4]} 37... Nb6 {[%clk
0:00:58.9]} 38. f3 {[%clk 0:00:35.2]} 38... f5 {[%clk 0:00:56.8]} 39. Bxc6+
{[%clk 0:00:33.6]} 39... Kxc6 {[%clk 0:00:57.7]} 40. Rxe6+ {[%clk 0:00:33.9]}
40... Rd6 {[%clk 0:00:57.9]} 41. Re7 {[%clk 0:00:34.4]} 41... Bf6 {[%clk
0:00:55.8]} 42. Re2 {[%clk 0:00:34.8]} 42... Ra7 {[%clk 0:00:53.4]} 43. Bf4
{[%clk 0:00:33.9]} 43... Re7 {[%clk 0:00:46.1]} 44. Rxe7 {[%clk 0:00:31.8]}
44... Bxe7 {[%clk 0:00:47]} 45. Bxd6 {[%clk 0:00:31.5]} 45... Bxd6 {[%clk
0:00:47]} 46. Rd2 {[%clk 0:00:27.3]} 46... Nc4 {[%clk 0:00:46.5]} 47. Re2 {[%clk
0:00:25.6]} 47... Kd5 {[%clk 0:00:45.3]} 48. Kg2 {[%clk 0:00:24.8]} 48... f4
{[%clk 0:00:43]} 49. g4 {[%clk 0:00:24.1]} 49... Ne3+ {[%clk 0:00:41.4]} 50. Kh3
{[%clk 0:00:24.3]} 50... Kc4 {[%clk 0:00:40.3]} 51. gxh5 {[%clk 0:00:23.7]}
51... gxh5 {[%clk 0:00:40.9]} 52. Kh2 {[%clk 0:00:21.4]} 52... Kd3 {[%clk
0:00:38]} 53. Rf2 {[%clk 0:00:20.4]} 53... Be7 {[%clk 0:00:34.7]} 54. Kh3 {[%clk
0:00:20.2]} 54... Bd6 {[%clk 0:00:34.5]} 55. d5 {[%clk 0:00:18.7]} 55... Nxd5
{[%clk 0:00:34]} 56. Rg2 {[%clk 0:00:19]} 56... Ne3 {[%clk 0:00:33.3]} 57. Rg5
{[%clk 0:00:18.6]} 57... Kc4 {[%clk 0:00:32.2]} 58. Rxh5 {[%clk 0:00:17.5]}
58... Nd1 {[%clk 0:00:32.1]} 59. Rh6 {[%clk 0:00:16.8]} 59... Be7 {[%clk
0:00:31.5]} 60. Re6 {[%clk 0:00:17]} 60... Bd8 {[%clk 0:00:30.8]} 61. h5 {[%clk
0:00:17.2]} 61... Bg5 {[%clk 0:00:26.9]} 62. Rg6 {[%clk 0:00:15.5]} 62... Nxb2
{[%clk 0:00:18.5]} 63. Rxg5 {[%clk 0:00:15.4]} 63... a3 {[%clk 0:00:17.7]} 64.
Rg1 {[%clk 0:00:14.9]} 64... Nd3 {[%clk 0:00:16]} 65. h6 {[%clk 0:00:12.6]}
65... Ne5 {[%clk 0:00:16.4]} 66. h7 {[%clk 0:00:12.9]} 66... Nf7 {[%clk
0:00:16.9]} 67. Kg4 {[%clk 0:00:10.3]} 67... Kxc3 {[%clk 0:00:16.5]} 68. Kxf4
{[%clk 0:00:10.8]} 68... Kb2 {[%clk 0:00:16.6]} 69. Kf5 {[%clk 0:00:10.8]} 69...
a2 {[%clk 0:00:17]} 70. Kf6 {[%clk 0:00:11.4]} 70... Nh8 {[%clk 0:00:16.7]} 71.
Kg7 {[%clk 0:00:11.7]} 71... a1=Q {[%clk 0:00:17.3]} 72. Rxa1 {[%clk 0:00:12.2]}
72... Kxa1 {[%clk 0:00:18.2]} 73. Kxh8 {[%clk 0:00:12.5]} 73... Kb2 {[%clk
0:00:18.7]} 74. Kg8 {[%clk 0:00:13.4]} 74... Kb3 {[%clk 0:00:19.3]} 75. h8=Q
{[%clk 0:00:14.2]} 75... Kxb4 {[%clk 0:00:19.9]} 76. Qe5 {[%clk 0:00:15.1]} 1-0

[Event "*** Titled Tuesday Blitz"]
[Site "Chess.com"]
[Date "2020.04.21"]
[Round "2"]
[White "Sychev_Klementy"]
[Black "Willychess95"]
[Result "1-0"]
[WhiteElo "2861"]
[BlackElo "2581"]
[TimeControl "180+1"]
[EndTime "10:20:27 PDT"]
[Termination "Sychev_Klementy won by resignation"]

1. e4 {[%clk 0:03:00.9]} 1... c5 {[%clk 0:02:58.9]} 2. Nf3 {[%clk 0:03:00.5]}
2... d6 {[%clk 0:02:59.2]} 3. d4 {[%clk 0:03:00.8]} 3... cxd4 {[%clk 0:03:00.1]}
4. Nxd4 {[%clk 0:03:01.4]} 4... Nf6 {[%clk 0:03:00]} 5. Nc3 {[%clk 0:03:02]}
5... g6 {[%clk 0:03:00.1]} 6. Be3 {[%clk 0:02:58.9]} 6... a6 {[%clk 0:02:59.8]}
7. f3 {[%clk 0:02:53.6]} 7... b5 {[%clk 0:02:59.1]} 8. Qd2 {[%clk 0:02:50.1]}
8... Bb7 {[%clk 0:02:58.7]} 9. a4 {[%clk 0:02:45.7]} 9... b4 {[%clk 0:02:58.6]}
10. Na2 {[%clk 0:02:45.9]} 10... e5 {[%clk 0:02:58.4]} 11. Nb3 {[%clk
0:02:44.6]} 11... d5 {[%clk 0:02:54.6]} 12. Nxb4 {[%clk 0:02:39.8]} 12... dxe4
{[%clk 0:02:46.9]} 13. Qxd8+ {[%clk 0:02:32.5]} 13... Kxd8 {[%clk 0:02:47.8]}
14. O-O-O+ {[%clk 0:02:27.4]} 14... Kc7 {[%clk 0:02:47.6]} 15. Nc5 {[%clk
0:02:22]} 15... exf3 {[%clk 0:01:58.1]} 16. Nxb7 {[%clk 0:02:17]} 16... Kxb7
{[%clk 0:01:59]} 17. Nd5 {[%clk 0:02:10.4]} 17... Ng4 {[%clk 0:01:37.2]} 18.
gxf3 {[%clk 0:01:56.9]} 18... Nxe3 {[%clk 0:01:37]} 19. Nxe3 {[%clk 0:01:57.8]}
19... Bh6 {[%clk 0:01:37.5]} 20. Re1 {[%clk 0:01:51]} 20... Nc6 {[%clk
0:01:36.4]} 21. Kb1 {[%clk 0:01:47.2]} 21... Nd4 {[%clk 0:01:33.5]} 22. Bg2
{[%clk 0:01:45]} 22... Bf4 {[%clk 0:01:27.8]} 23. Ng4 {[%clk 0:01:35.2]} 23...
Nc6 {[%clk 0:01:21.6]} 24. Nf6 {[%clk 0:01:28.3]} 24... Rhd8 {[%clk 0:01:05]}
25. Re2 {[%clk 0:01:14.6]} 25... h5 {[%clk 0:01:04.5]} 26. c3 {[%clk 0:01:08.1]}
26... Rab8 {[%clk 0:01:02.5]} 27. Kc2 {[%clk 0:01:05.6]} 27... a5 {[%clk
0:01:00.6]} 28. Ne4 {[%clk 0:01:04.8]} 28... Kb6 {[%clk 0:01:00.1]} 29. Nf2
{[%clk 0:01:03.6]} 29... f5 {[%clk 0:00:58]} 30. Nd3 {[%clk 0:01:01]} 30... Rbc8
{[%clk 0:00:57.6]} 31. Nxf4 {[%clk 0:00:58.6]} 31... Nd4+ {[%clk 0:00:57.5]} 32.
Kb1 {[%clk 0:00:51.1]} 32... Nxe2 {[%clk 0:00:57.1]} 33. Nxe2 {[%clk 0:00:50.8]}
33... Rd2 {[%clk 0:00:57.4]} 34. Re1 {[%clk 0:00:49.2]} 34... Kc5 {[%clk
0:00:54.3]} 35. Kc1 {[%clk 0:00:48.4]} 35... Rcd8 {[%clk 0:00:54.3]} 36. Bf1
{[%clk 0:00:35]} 36... Kb6 {[%clk 0:00:41.8]} 37. h4 {[%clk 0:00:26.4]} 37... f4
{[%clk 0:00:27.2]} 38. Nd4 {[%clk 0:00:14.2]} 38... Rf2 {[%clk 0:00:24]} 39. Nb3
{[%clk 0:00:04.6]} 39... Rxf3 {[%clk 0:00:21.2]} 40. Nd2 {[%clk 0:00:04.7]}
40... Re3 {[%clk 0:00:13.9]} 41. Nc4+ {[%clk 0:00:04.7]} 41... Kc5 {[%clk
0:00:14.2]} 42. Nxe3 {[%clk 0:00:05]} 42... fxe3 {[%clk 0:00:15.1]} 43. Rxe3
{[%clk 0:00:05.6]} 43... Re8 {[%clk 0:00:15.5]} 44. Bd3 {[%clk 0:00:04.4]} 44...
Re6 {[%clk 0:00:15.2]} 45. Be4 {[%clk 0:00:04.7]} 45... Rf6 {[%clk 0:00:14.5]}
46. Rg3 {[%clk 0:00:04.9]} 46... Rf4 {[%clk 0:00:15]} 47. Bxg6 {[%clk 0:00:05]}
47... Rxh4 {[%clk 0:00:15.3]} 48. Rg5 {[%clk 0:00:05.3]} 48... Kd6 {[%clk
0:00:14.6]} 49. Rxh5 {[%clk 0:00:04.8]} 49... Rxa4 {[%clk 0:00:15]} 50. Bc2
{[%clk 0:00:04.2]} 50... Rg4 {[%clk 0:00:14]} 51. b3 {[%clk 0:00:03.3]} 51...
Rg3 {[%clk 0:00:13.3]} 52. Kd2 {[%clk 0:00:03.5]} 52... Rg2+ {[%clk 0:00:13.3]}
53. Kc1 {[%clk 0:00:03.5]} 53... Rg3 {[%clk 0:00:13.3]} 54. Kb2 {[%clk
0:00:03.2]} 54... Rg2 {[%clk 0:00:11.3]} 55. Rh6+ {[%clk 0:00:03.3]} 55... Kc5
{[%clk 0:00:11.2]} 56. Rh4 {[%clk 0:00:03.4]} 56... Rg3 {[%clk 0:00:09.4]} 57.
Ra4 {[%clk 0:00:03.3]} 57... Kb6 {[%clk 0:00:09.8]} 58. Re4 {[%clk 0:00:03.4]}
58... Rg5 {[%clk 0:00:10.3]} 59. Kc1 {[%clk 0:00:03.8]} 59... Rg1+ {[%clk
0:00:09.3]} 60. Kd2 {[%clk 0:00:03.7]} 60... Rg5 {[%clk 0:00:09.7]} 61. Kd3
{[%clk 0:00:03.6]} 61... Kc5 {[%clk 0:00:09.9]} 62. Re3 {[%clk 0:00:03.5]} 62...
Rh5 {[%clk 0:00:09]} 63. Bd1 {[%clk 0:00:03.8]} 63... Rg5 {[%clk 0:00:08.3]} 64.
Be2 {[%clk 0:00:04]} 64... Kd5 {[%clk 0:00:07.5]} 65. Bf3+ {[%clk 0:00:04.3]}
65... Kc5 {[%clk 0:00:08.1]} 66. Be4 {[%clk 0:00:04.8]} 66... Rg1 {[%clk
0:00:07.6]} 67. Bf3 {[%clk 0:00:04.7]} 67... Rg5 {[%clk 0:00:07.6]} 68. Ke4
{[%clk 0:00:04.9]} 68... Kb5 {[%clk 0:00:06.2]} 69. Rd3 {[%clk 0:00:05.4]} 69...
a4 {[%clk 0:00:06.7]} 70. Rd5+ {[%clk 0:00:05.2]} 70... Kb6 {[%clk 0:00:07.3]}
71. bxa4 {[%clk 0:00:05.6]} 71... Rg1 {[%clk 0:00:06.6]} 72. Rxe5 {[%clk
0:00:05.3]} 72... Ra1 {[%clk 0:00:06.8]} 73. a5+ {[%clk 0:00:05.6]} 73... Kc7
{[%clk 0:00:05.9]} 74. Kd4 {[%clk 0:00:05.7]} 74... Ra4+ {[%clk 0:00:05.7]} 75.
Kd3 {[%clk 0:00:05.2]} 75... Ra3 {[%clk 0:00:06.6]} 76. Be2 {[%clk 0:00:05]}
76... Kd6 {[%clk 0:00:06.9]} 77. Rh5 {[%clk 0:00:05.1]} 77... Kc7 {[%clk
0:00:06.6]} 78. Kc4 {[%clk 0:00:05.2]} 78... Ra2 {[%clk 0:00:07]} 79. Bd3 {[%clk
0:00:05.1]} 79... Ra3 {[%clk 0:00:07.2]} 80. Kb4 {[%clk 0:00:05.2]} 80... Ra1
{[%clk 0:00:08.1]} 81. Rh7+ {[%clk 0:00:05.2]} 81... Kb8 {[%clk 0:00:09]} 82. a6
{[%clk 0:00:05]} 82... Ra2 {[%clk 0:00:09.3]} 83. Be4 {[%clk 0:00:04.9]} 83...
Rxa6 {[%clk 0:00:09.3]} 84. c4 {[%clk 0:00:04.5]} 84... Rb6+ {[%clk 0:00:08.5]}
85. Kc5 {[%clk 0:00:04.5]} 85... Re6 {[%clk 0:00:09.1]} 86. Bd5 {[%clk
0:00:04.8]} 86... Re1 {[%clk 0:00:09.6]} 87. Kd6 {[%clk 0:00:04.8]} 87... Rg1
{[%clk 0:00:08.5]} 88. Rh8+ {[%clk 0:00:04.5]} 88... Ka7 {[%clk 0:00:08.5]} 89.
Ra8+ {[%clk 0:00:04.2]} 89... Kb6 {[%clk 0:00:08.6]} 90. c5+ {[%clk 0:00:04.7]}
90... Kb5 {[%clk 0:00:09.2]} 91. Rb8+ {[%clk 0:00:05.2]} 91... Ka5 {[%clk
0:00:10.1]} 92. c6 {[%clk 0:00:05.4]} 92... Rg6+ {[%clk 0:00:10.1]} 93. Kc5
{[%clk 0:00:05.7]} 93... Rg8 {[%clk 0:00:08.6]} 94. Rxg8 {[%clk 0:00:05.1]} 1-0